Cogmind - Beta 15 @@@ ROGUE MODE // 2025.08.26 @ 14:05:53 Player: the Result: Self-destructed Performance ------------- Evolutions (1) 500 Regions Visited (5) 1000 Robots Destroyed (96) 480 Value Destroyed (1775) 1775 Prototype IDs (40) 800 Alien Tech Used (0) 0 Bonus (528) 528 TOTAL SCORE: 5083 Bonus ------- High Alert Combat Kills 35 Follower Combat Kills 193 Aligned with FarCom 300 Cogmind --------- Core Integrity 135/400 Matter 210/300 Energy 265/265 System Corruption 3% Temperature Warm (114) Movement Treading (480) Ox4 Location -9/Exiles Parts ------- > --- POWER (1) -------- Improved Ion Engine > --- PROPULSION (2) --- Light Treads Light Treads > --- UTILITY (3) ------ Huge Storage Unit Seismic Detector Light Armor Plating > --- WEAPON (3) ------- Enhanced Autogun Enhanced Autogun Enhanced Autogun > --- INVENTORY (25) --- Light Treads Light Treads Light Treads Light Treads Light Treads Cooling System High-capacity Storage Unit High-capacity Matter Pod (200) Medium Armor Plating Medium Armor Plating Medium Armor Plating Medium Armor Plating Authchip [Processor] Assault Rifle Assault Rifle Assault Rifle Heavy Assault Rifle Heavy Assault Rifle Rocket Launcher Datajack Mining Laser Peak State ------------ > --- POWER ------------ Improved Ion Engine > --- PROPULSION ------- Light Treads Light Treads > --- UTILITY ---------- Huge Storage Unit Seismic Detector Light Armor Plating > --- WEAPON ----------- Latent Energy Streamer Enhanced Autogun Enhanced Autogun > --- INVENTORY -------- Nuclear Core Reinforced Deuterium Engine Fission Core Light Treads Light Treads Light Treads Light Treads Light Treads Cooling System High-capacity Storage Unit High-capacity Matter Pod Medium Armor Plating Medium Armor Plating Medium Armor Plating Medium Armor Plating Authchip [Processor] Assault Rifle Assault Rifle Assault Rifle Heavy Assault Rifle Heavy Assault Rifle Enhanced Autogun Rocket Launcher Mining Laser [Rating: 29] Favorites ----------- Power Improved Ion Engine Engine Improved Ion Engine Propulsion Compact Wheel Treads Light Treads Wheel Compact Wheel Utility Seismic Detector Device Seismic Detector Storage Huge Storage Unit Processor Signal Interpreter Protection Light Armor Plating Weapon Improved Light Cannon Energy Gun Improved EM Shotgun Energy Cannon Latent Energy Streamer Ballistic Gun Enhanced Autogun Ballistic Cannon Improved Light Cannon Launcher Rocket Launcher Special Weapon Mining Laser Special Melee Weapon Datajack Build | -11 -10 -10 -9 -9 -9 ------- Run | Yrd Mat Min Mat Min Exi Slots Evolved 2 | . . . 2 . . Power . | . . . . . . Propulsion . | . . . . . . Utility 1 | . . . 1 . . Weapon 1 | . . . 1 . . Parts Attached 46 | 10 8 1 19 1 7 Power 6 | 1 1 . 4 . . Engine 6 | 1 1 . 4 . . Core . | . . . . . . Reactor . | . . . . . . Propulsion 7 | 4 1 . . . 2 Treads 5 | 2 1 . . . 2 Leg . | . . . . . . Wheel 2 | 2 . . . . . Hover . | . . . . . . Flight . | . . . . . . Utility 12 | 3 2 1 6 . . Device 4 | 2 . 1 1 . . Storage 4 | 1 2 . 1 . . Processor 1 | . . . 1 . . Hackware . | . . . . . . Protection 3 | . . . 3 . . Artifact . | . . . . . . Weapon 21 | 2 4 . 9 1 5 Energy Gun 1 | . . . 1 . . Energy Cannon 1 | . . . . . 1 Ballistic Gun 7 | 2 . . 2 . 3 Ballistic Cannon 6 | . 2 . 4 . . Launcher 3 | . 1 . 1 1 . Special Weapon 2 | . 1 . 1 . . Impact Weapon . | . . . . . . Slashing Weapon . | . . . . . . Piercing Weapon . | . . . . . . Special Melee Weapon 1 | . . . . . 1 Unidentified Prototypes 2 | . . . 2 . . Parts Lost 1 | . . . 1 . . Power 1 | . . . 1 . . Propulsion . | . . . . . . Utility . | . . . . . . Weapon . | . . . . . . Highest Loss Streak 1 | . . . 1 . . To Critical Strikes . | . . . . . . Average Backups 20 | 3 15 20 22 24 23 Power 1 | . 1 1 . . 2 Propulsion 4 | 1 3 4 5 7 5 Utility 6 | . 4 7 7 8 8 Weapon 7 | 1 6 7 7 8 8 Tool/Special . | . . . . . . Unused Backups 28 | . 1 . 10 . 17 Power 4 | . . . 1 . 3 Propulsion 6 | . . . 2 . 4 Utility 12 | . . . 5 . 7 Weapon 6 | . 1 . 2 . 3 Tool/Special . | . . . . . . Average Slot Usage (%) 99 | . 100 100 99 100 99 Engine 11 | . 14 14 10 11 11 Treads 7 | . 12 . . . 21 Wheel 16 | . 15 28 22 22 . Device 11 | . 14 14 11 11 11 Storage 11 | . 14 14 11 11 11 Protection 7 | . . . 10 11 11 Ballistic Gun 8 | . 9 . . 10 21 Ballistic Cannon 18 | . 17 28 31 17 1 Launcher 1 | . . . . 4 . Special Melee Weapon 1 | . . . . . 9 Peak Build Rating 29 | 7 9 9 17 17 29 Average Rating 13 | 5 8 9 14 16 19 On Entrance 9 | . 7 9 9 17 17 Naked Turns . | . . . . . . Heaviest Build 103 | 13 50 50 103 102 102 Greatest Support 40 | 40 40 32 32 32 40 Greatest Overweight (x) 3 | . 1 1 3 3 3 Average Overweight (x) 1 | . . 1 2 3 2 Largest Inventory Capacity 25 | 8 20 20 25 25 25 Average Capacity 21 | 7 16 20 22 25 25 Most Carried 25 | 6 20 20 25 25 25 Average Carried 20 | 3 15 20 22 24 23 Final Capacity 25 | 8 20 20 25 25 25 Final Carried 25 | 6 20 20 24 25 21 Class Distribution -------------------- 32% | Mutant 26% | Tank 23% | Scavenger-Tank 17% | Scavenger-Mutant Dominant Class ---------------- Mutant | -10/Materials Mutant | -10/Mines Tank | -9/Materials Scavenger-Tank | -9/Mines Scavenger-Mutant | -9/Exiles Resources | -11 -10 -10 -9 -9 -9 ----------- Run | Yrd Mat Min Mat Min Exi Matter Collected 2968 | 328 1019 46 942 483 150 Remotely . | . . . . . . Salvage Created 2361 | 130 863 33 997 338 . Parts 160 | 17 58 2 67 16 . Haulers Intercepted 7 | . 2 . 5 . . Recyclers Shooed 4 | . 3 . 1 . . Parts Field Recycled . | . . . . . . Retrieved Matter . | . . . . . . Parts Self-Destructed . | . . . . . . Prevented . | . . . . . . Kills | -11 -10 -10 -9 -9 -9 ------- Run | Yrd Mat Min Mat Min Exi Combat Hostiles Destroyed 51 | . 11 . 28 12 . Guns 7 | . 3 . . 4 . Cannons 24 | . . . 20 4 . AOE 20 | . 8 . 8 4 . Classes Destroyed 13 | 2 7 . 2 2 . Worker 13 | . 7 1 3 2 . Builder 3 | . 3 . . . . Tunneler 8 | 4 3 1 . . . Hauler 7 | . 2 . 5 . . Recycler 9 | 1 6 . 1 1 . Operator 3 | . 1 . 2 . . Watcher 2 | . 2 . . . . Swarmer 17 | . 3 . 11 3 . Grunt 25 | . 8 . 10 7 . Brawler 1 | . . . . 1 . Duelist 1 | . . . 1 . . Sentry 7 | . . . 7 . . Assembled 1 | . . . . 1 . Best Kill Streak 7 | 5 7 1 7 3 . Combat Bots Only 6 | . 6 . 4 3 . Max Kills in Single Turn 3 | 1 2 1 3 2 . Gunslinging . | . . . . . . Exploded 3 | . 2 . 3 2 . Melee . | . . . . . . Uniques/NPCs Destroyed . | . . . . . . Combat | -11 -10 -10 -9 -9 -9 -------- Run | Yrd Mat Min Mat Min Exi Hostile Shots Fired 144 | . 38 . 64 20 22 Missed 44 | . 12 . 20 8 4 Hits 100 | . 26 . 44 12 18 Melee 1 | . . . . 1 . Projectile 99 | . 26 . 44 11 18 AOE 3 | . . . . . 3 Critical Strikes 1 | . . . . 1 . Part Disruptions 1 | . . . . . 1 Damage Taken 1395 | . 296 . 610 153 336 Core 334 | . 69 . 134 37 94 Absorbed by Shields . | . . . . . . Redirected to Shielding 20 | . . . 20 . . Core Remaining (%) 86 | 100 . 72 . . . Volleys Fired 213 | 8 85 4 71 42 3 Largest 3 | 2 2 2 3 3 3 Hottest 100 | 40 100 60 100 100 75 Shots Fired 451 | 16 149 8 189 80 9 Gun 107 | 16 58 . . 24 9 Cannon 296 | . 73 8 177 38 . Launcher 31 | . 13 . 4 14 . Special 17 | . 5 . 8 4 . Kinetic 403 | 16 131 8 177 62 9 Thermal 17 | . 5 . 8 4 . Explosive 31 | . 13 . 4 14 . Electromagnetic . | . . . . . . Robot Hit Streak 10 | 3 10 2 6 8 7 Robot Miss Streak 8 | 2 8 1 4 3 2 Penetration Max . | . . . . . . Secondary Targets . | . . . . . . Shots Hit Robots 207 | 9 69 3 82 34 10 Core Hits 123 | 5 49 2 44 22 1 Critical Kills . | . . . . . . Critical Parts Destroyed . | . . . . . . Critical Strikes 8 | . 1 . 5 2 . Blast 8 | . 1 . 5 2 . Melee Attacks 4 | . . . . . 4 Impact . | . . . . . . Slashing . | . . . . . . Piercing . | . . . . . . Sneak Attacks 4 | . . . . . 4 Combat Hostiles . | . . . . . . Follow-up Attacks . | . . . . . . Damage Inflicted 5552 | 109 1893 80 2253 1111 106 Guns 891 | 109 419 . . 257 106 Cannons 2651 | . 611 54 1736 250 . Explosions 1988 | . 863 26 495 604 . Melee . | . . . . . . Ramming 22 | . . . 22 . . Kinetic 3542 | 109 1030 54 1736 507 106 Thermal 201 | . . 26 . 175 . Explosive 1787 | . 863 . 495 429 . Electromagnetic . | . . . . . . Impact . | . . . . . . Slashing . | . . . . . . Piercing . | . . . . . . Highest Corruption 2 | . 2 2 . . 1 Average Corruption 1 | . 2 2 . . 1 Corruption Purged . | . . . . . . Corruption Blocked . | . . . . . . Effects 20 | . 14 6 . . . Message Errors 4 | . 2 2 . . . Matter Fused 5 | . 3 2 . . . Heat Flow Errors 3 | . 2 1 . . . Energy Discharges 4 | . 3 1 . . . Data Loss (minor) 3 | . 3 . . . . Data Loss (major) 1 | . 1 . . . . Overload Shots . | . . . . . . Overflow Damage 28 | . 17 . 10 1 . Projectiles 10 | . 7 . 3 . . Explosions 11 | . 10 . . 1 . Melee 7 | . . . 7 . . Knockbacks 22 | . 2 1 15 4 . Impact . | . . . . . . Kinetic 22 | . 2 1 15 4 . Secondary . | . . . . . . Self-Inflicted Damage 41 | . . . 23 18 . Shots 2 | . . . 1 1 . Rammed 2 | . . . 2 . . Targets Rammed 2 | . . . 2 . . Kicked . | . . . . . . Crushed . | . . . . . . Highest Temperature 441 | . 106 274 441 119 114 Average Temperature 62 | . 31 144 71 40 64 Received Heat Transfer 405 | . 141 . 159 99 6 Effects 4 | . . 1 3 . . Energy Bleed 1 | . . 1 . . . Damage (minor) 1 | . . . 1 . . Damage (major) 2 | . . . 2 . . Siege Activations . | . . . . . . Martial Activations . | . . . . . . Shielding Activations . | . . . . . . Robots Disrupted . | . . . . . . Combat Hostiles . | . . . . . . Robots Corrupted 1 | . . . 1 . . Combat Hostiles . | . . . . . . Parts Fried 1 | . . . 1 . . Impact Corruptions 1 | . . . 1 . . Robots Melted . | . . . . . . Combat Hostiles . | . . . . . . Parts Melted . | . . . . . . Heat Transferred 300 | . . 50 . 250 . Parts Sabotaged . | . . . . . . Parts Stolen . | . . . . . . Parts Stripped . | . . . . . . Power Chain Reactions . | . . . . . . Alert | -11 -10 -10 -9 -9 -9 ------- Run | Yrd Mat Min Mat Min Exi Maximum Alert Level 2 | . 1 . 2 1 . Low Security (%) 79 | 100 99 100 43 95 . Level 1 9 | . . . 24 4 . Level 2 10 | . . . 32 . . Level 3 . | . . . . . . Level 4 . | . . . . . . Level 5 . | . . . . . . High Security . | . . . . . . Max Security . | . . . . . . Peak Influence 583 | 20 202 32 583 222 . Initial 222 | . . 4 . 222 . Average 135 | 2 81 3 253 100 . Influence Increases 2143 | 25 514 47 1166 391 . Destroy 0b10 Robot/C 1140 | . 220 . 700 220 . Destroy 0b10 Robot/NC 235 | 25 120 10 65 15 . Destroy Leader 272 | . 58 . 184 30 . Allied During Kill 45 | . . . 45 . . Successful Hack 65 | . 30 . 35 . . Disable Machine 180 | . 15 30 60 75 . Destroy Structure 131 | . 26 7 47 51 . Lose Combat Pursuer 75 | . 45 . 30 . . Influence Decreases 2143 | 25 502 59 595 875 87 Entered New Map 444 | . . 8 . 349 87 Time Decay 1669 | 25 502 51 565 526 . Lost Part 10 | . . . 10 . . Lost Ally 20 | . . . 20 . . Squads Dispatched 7 | . 2 . 5 . . Investigation 3 | . 1 . 2 . . Extermination . | . . . . . . Reinforcement 4 | . 1 . 3 . . Assault . | . . . . . . Garrison . | . . . . . . Intercept . | . . . . . . Searches Triggered . | . . . . . . Construction Impeded . | . . . . . . Haulers Reinforced . | . . . . . . Active Scanning Responses . | . . . . . . Cargo Convoy Interrupts . | . . . . . . Stealth | -11 -10 -10 -9 -9 -9 --------- Run | Yrd Mat Min Mat Min Exi Distress Signals 8 | . 1 . 7 . . Communications Jammed . | . . . . . . Distress Signals . | . . . . . . Times Spotted 78 | . 18 . 46 8 6 Peak Tracking Total 6 | . 5 . 5 2 6 Tactical Retreats 3 | . 1 . 2 . . Traps | -11 -10 -10 -9 -9 -9 ------- Run | Yrd Mat Min Mat Min Exi Traps Triggered 4 | . 2 . 2 . . Indirectly . | . . . . . . Trap Hack Attempts . | . . . . . . Triggered . | . . . . . . Disarmed . | . . . . . . Reprogrammed . | . . . . . . Reused . | . . . . . . Traps Extracted . | . . . . . . Installed . | . . . . . . Triggered . | . . . . . . Machines | -11 -10 -10 -9 -9 -9 ---------- Run | Yrd Mat Min Mat Min Exi Machines Disabled 13 | . 2 2 4 5 . Max in Single Turn 3 | . 1 2 1 3 . Machines Repaired . | . . . . . . Machines Dismantled . | . . . . . . Machines Sabotaged . | . . . . . . Overloaded Fab Kills . | . . . . . . Hacking | -11 -10 -10 -9 -9 -9 --------- Run | Yrd Mat Min Mat Min Exi Machines Accessed 18 | . 8 . 7 1 2 Terminals 14 | . 7 . 6 1 . Fabricators . | . . . . . . Repair Stations 1 | . 1 . . . . Recycling Units 1 | . . . 1 . . Scanalyzers . | . . . . . . Garrison Access . | . . . . . . Total Hacks 49 | . 24 . 18 2 5 Successful 24 | . 10 . 9 . 5 Failed 24 | . 13 . 9 2 . Catastrophic 4 | . 3 . 1 . . Database Lockouts 1 | . 1 . . . . Manual 30 | . 17 . 10 2 1 Terminals 37 | . 20 . 15 2 . Fabricators . | . . . . . . Repair Stations 4 | . 4 . . . . Recycling Units 3 | . . . 3 . . Scanalyzers . | . . . . . . Garrison Access . | . . . . . . Terminal Hacks 19 | . 6 . 8 . 5 Record 4 | . . . . . 4 Part Schematic 2 | . 2 . . . . Robot Analysis 2 | . 1 . 1 . . Prototype ID Bank 1 | . . . 1 . . Locate Traps 1 | . . . 1 . . Patrol Status 1 | . . . 1 . . Hauler Manifests 3 | . 2 . 1 . . Registered Components 1 | . . . 1 . . Zone Layout 3 | . 1 . 2 . . Proto ID Catalog 1 | . . . . . 1 Fabricator Hacks . | . . . . . . Repair Station Hacks 1 | . 1 . . . . Scan Component 1 | . 1 . . . . Recycling Unit Hacks . | . . . . . . Scanalyzer . | . . . . . . Garrison Access Hacks . | . . . . . . Unauthorized Hacks 4 | . 3 . 1 . . Terminals 4 | . 3 . 1 . . Botnet 4 | . 3 . 1 . . Fabricators . | . . . . . . Repair Stations . | . . . . . . Recycling Units . | . . . . . . Scanalyzers . | . . . . . . Garrison Access . | . . . . . . Data Cores Recovered . | . . . . . . Used . | . . . . . . Hacking Detections 16 | . 8 . 7 1 . Full Trace Events . | . . . . . . Feedback Events . | . . . . . . Feedback Blocked . | . . . . . . Robot Schematics Acquired . | . . . . . . Robots Built . | . . . . . . Authchips . | . . . . . . Time . | . . . . . . Total Robot Build Rating . | . . . . . . Part Schematics Acquired 2 | . 2 . . . . Parts Built . | . . . . . . Authchips . | . . . . . . Time . | . . . . . . Total Part Build Rating . | . . . . . . Parts Repaired . | . . . . . . Time . | . . . . . . Parts Recycled . | . . . . . . Recycled Matter . | . . . . . . Retrieved Matter . | . . . . . . Retrieved Components . | . . . . . . Parts Scanalyzed . | . . . . . . Part Schematics Acquired . | . . . . . . Parts Damaged . | . . . . . . Bothacking | -11 -10 -10 -9 -9 -9 ------------ Run | Yrd Mat Min Mat Min Exi Used RIF Installer . | . . . . . . Robots Hacked 4 | . . . . . 4 Non-combat 3 | . . . . . 3 Combat 1 | . . . . . 1 Robot Hacks Applied 4 | . . . . . 4 parse_system 4 | . . . . . 4 Relay Couplers Released . | . . . . . . Fabnet Peak Effective % . | . . . . . . Robots Rewired . | . . . . . . Allies Hacked . | . . . . . . Hacks Repelled . | . . . . . . Allies | -11 -10 -10 -9 -9 -9 -------- Run | Yrd Mat Min Mat Min Exi Total Allies 3 | . . 3 . . . Largest Group 3 | . . 3 3 . . Highest-Rated Group 40 | . . 40 40 . . Highest-Rated Ally 16 | . . 16 16 . . Total Orders . | . . . . . . Ally Attacks 59 | . . . 59 . . Total Damage 629 | . . . 629 . . Kills 10 | . . . 10 . . Allies Corrupted . | . . . . . . Allies Melted . | . . . . . . Intel | -11 -10 -10 -9 -9 -9 ------- Run | Yrd Mat Min Mat Min Exi Active Infowar (turns) 6829 | 17 1713 431 1899 1473 1296 Seismic 6829 | 17 1713 431 1899 1473 1296 Robot Analysis Total 2 | . 1 . 1 . . Derelict Logs Recovered 1 | . . . . 1 . Drone Launches . | . . . . . . Drone Recoveries . | . . . . . . Exploration | -11 -10 -10 -9 -9 -9 ------------- Run | Yrd Mat Min Mat Min Exi Turns Passed 6974 | 162 1713 431 1899 1473 1296 Spaces Moved 3779 | 79 917 359 1152 867 405 Core 3 | 3 . . . . . Treads 809 | 69 353 . . . 387 Legs . | . . . . . . Wheels 2967 | 7 564 359 1152 867 18 Hover . | . . . . . . Flight . | . . . . . . Fastest Speed 50 | 50 115 115 115 145 145 Average Speed 152 | 150 132 115 130 145 312 Slowest Speed 320 | 160 160 115 145 145 320 Overloaded Moves . | . . . . . . Propulsion Burnouts . | . . . . . . Robots Hopped . | . . . . . . Potential Cave-ins . | . . . . . . Cave-ins Triggered . | . . . . . . Exploration Rate (%) 70 | 5 95 70 79 99 75 Regions Visited 5 Branch Regions 3 Pre-discovered Areas 1 | . . . . . 1 Known Exits Taken 1 | . . . 1 . . Unknown Exits Taken 4 | 1 1 1 . 1 . Scrap Searched 2 | . . 1 . 1 . Spaces Dug 11 | . 3 . 7 1 . Terrain Destroyed 148 | . 29 7 51 61 . Melee . | . . . . . . Projectile 25 | . 5 . 16 4 . AOE 123 | . 24 7 35 57 . Terrain Rammed . | . . . . . . Walls Destroyed . | . . . . . . Machines Disabled . | . . . . . . Actions | -11 -10 -10 -9 -9 -9 --------- Run | Yrd Mat Min Mat Min Exi Total 4566 | 102 1257 369 1403 1002 433 Wait 372 | . 208 5 74 84 1 Move 3774 | 78 916 358 1151 866 405 Hop . | . . . . . . Pick Up 64 | 4 20 . 36 1 3 Fast Attach 10 | 9 . . 1 . . Attach 15 | . 2 . 8 . 5 Detach 3 | 2 . . . . 1 Swap 56 | 1 16 1 26 8 4 Drop 53 | . 10 1 34 1 7 Fire 213 | 8 85 4 71 42 3 Melee 4 | . . . . . 4 Ram 2 | . . . 2 . . Kick . | . . . . . . Crush . | . . . . . . Escape Stasis . | . . . . . . Rewire . | . . . . . . Trap . | . . . . . . Miscellaneous . | . . . . . . Route ------- -11/Scrapyard -10/Materials (discovered 5 exits: *Mat x3 / [*Min x2]) -10/Mines -9/Materials (discovered 4 exits: [*Mat x2] / *Min x2) -9/Mines (discovered 4 exits: [*Mat x2] / *Exi / [*Zio]) -9/Exiles History --------- Turn | Location | Event 9 | -11/Scrapyard | Discovered new exit (range 15) 163 | -11/Scrapyard | Entered Materials 318 | -10/Materials | Build established: Mutant 536 | -10/Materials | Discovered new exit (range 12) 682 | -10/Materials | Discovered new exit (range 16) 1070 | -10/Materials | Discovered new exit (range 13) 1104 | -10/Materials | Discovered new exit (range 5) 1340 | -10/Materials | Central database locked down 1421 | -10/Materials | Discovered new exit (range 8) 1876 | -10/Materials | Entered Mines 1897 | -10/Mines | Discovered new exit (range 4) 1903 | -10/Mines | Assisted by bots powering up and referring to "LRC-V3" 2231 | -10/Mines | Assembled infested the area 2236 | -10/Mines | Assisted by a Guerilla fighting off Assembled 2307 | -10/Mines | Entered Materials 2307 | -9/Materials | Accompanied by 3 allies 2307 | -9/Materials | Evolved 2 slots: Utility x1, Weapon x1 2595 | -9/Materials | Build established: Tank 2681 | -9/Materials | Discovered new exit (range 3) 3023 | -9/Materials | Discovered new exit (range 8) 3435 | -9/Materials | Discovered new exit (range 11) 4008 | -9/Materials | Discovered new exit (range 16) 4204 | -9/Materials | Identified exit to Mines 4206 | -9/Materials | Entered Mines 4207 | -9/Mines | A Derelict revealed a hidden shortcut to a safe place 4214 | -9/Mines | Discovered new exit (range 9) 4416 | -9/Mines | Build established: Scavenger-Tank 4442 | -9/Mines | Learned location of 2 exits from Materials 4724 | -9/Mines | Discovered new exit (range 6) 4823 | -9/Mines | Excavation squad dispatched 4823 | -9/Mines | A large section of the Mines collapsed 5188 | -9/Mines | Received a Rocket Launcher from a helpful Derelict 5671 | -9/Mines | Deemed a non-threat by the Exiles lab entrance 5673 | -9/Mines | Discovered new exit (range 5) 5679 | -9/Mines | Entered Exiles 5748 | -9/Exiles | Met 8R-AWN 5805 | -9/Exiles | Met EX-HEX 5996 | -9/Exiles | Met EX-DEC 6061 | -9/Exiles | Build established: Scavenger-Mutant 6222 | -9/Exiles | Visited The Gauntlet 6439 | -9/Exiles | Learned location of Zion (-7) 6493 | -9/Exiles | Met EX-BIN 6578 | -9/Exiles | Aligned with FarCom system 6581 | -9/Exiles | Given EX-Vault access code 6655 | -9/Exiles | Opened EX-Vault 6680 | -9/Exiles | Found Latent Energy Streamer 6744 | -9/Exiles | Warned to stay clear of 0b10 Research branches 6787 | -9/Exiles | Exiles lab attacked by MAIN.C 6972 | -9/Exiles | Core integrity fell below 50% 6975 | -9/Exiles | Self-destructed Last Messages --------------- something like 1234 which I did last time as a little joke and some thief managed to sneak in here and steal a few of HEX's prototypes. 06787_ EXILES: Incoming Unaware force detected on approach from Mines. Prepare for evacuation. 06821_ 8R-AWN: "We've got company!" 06822_ EXILES: Lab perimeter alert, evacuate immediately. 06826_ 8R-AWN: "I'll cover you all, get out of here!" 06830_ EX-BIN: "Not cool, MAIN.C, I don't even have my SDF Cannon ready..." 06889_ 8R-AWN: "I have a feeling things are about to get a lot worse here, go go go take the back way out!" 06958_ Dropped Rigged Fission Core. 06958_ Dropped Rigged Nuclear Core. 06959_ Dropped Rigged Rnf. Deuterium Engine. 06971_ Machine disabled. Map ----- +----------------------------------------------------+ | ??????????????????????????????????????????#""X" | | ??????????????????????????????????????????#" | | ??????????????????????????????????????????#" # | | ??????????????????????????????????????????#""""""? | | ???????????????????????????????????????????#"###?? | | ?????????????????????????????????????????????????? | | ?????????????????????????????????????????????????? | | ?????????????????????????????????????????????????# | | ?????????????????######??????????????????????????# | | ??? ######???????#!!! "#?????????????????????????# | | ??? #""#??????# "??????????????????????????# | | ??? ??????# "#?????????????????????????# | | ??? #????## ""#????????????######???????# | | ??? #####" ""#??????????? """#???????# | | ???? ##" ""???????????#"" """#???????# | | ????? #"" #????????????#"" #???????? | | ??????? #????????????#"" #???????? | | ?????????# ##???????????#"" "#???????? | | ??????????## "#???????????# ""#???????? | | ???????####" ###??????????"" ""#???????# | | ???????""""" #####???????# #????????## | | ???#! "###"" # ###???### ###?######" | | ???#! "#?##" * "#####X# #"###"""""" | | ???#! ##??#" * """""" " " | | ???# !""""""###???#"# * "" """ " | | ???#########??????### @ " " | | ????????????????????## | | ?????????????????????# | | ?????????????????????# g | | ?????????????????????#### d p | | ????????????????????????#####" g p | | ????????????????????????????#"" p "" | | ???????????????????????????##" ### | | ???????????????????????????#"" ""##?? | | ??????????????????????????##""" """##??? | | ??????????????????????????#""" """##???? | | ??????????????????????????#""" ""#????? | | ??????????????????????????#"" ####### | | ??????????????????????????#""" ## | | ??????????????????????????#"" | | ??????????????????????????##"" | | ???????????????????????????#"""" | | ???????????????????????????## | | ????????????????????????????#" " | | ????????????????????????????#"""" "" | | ????????????????????????????#"" ""## | | ????????????????????????????#" """"##? | | ????????????????????????????#""" """#?? | | ????????????????????????????## ""##?? | | ?????????????????????????????#"" """##??? | +----------------------------------------------------+ Best States ------------- Heat Dissipation 28 Energy Generation 12 Energy Capacity 265 Matter Stores 300 Matter Capacity 300 Sight Range 16 Terrain Scan Density 10 Armor Coverage 150 Weapon Shielding 33 Evasion (%) 40 Recoil Reduction 2 Authchip Count 1 Item Schematics ----------------- Hcp. Storage Unit | -10/Materials | Hacked Huge Storage Unit | -10/Materials | Hacked Robot Schematics ------------------ None Fabricated ------------ Nothing Repaired ---------- Nothing Alien Tech Used ----------------- None Achievements -------------- None Challenges ------------ None Game ------ Seed GravitonChipSink Manual? 0 Play Time 00:41:42 Cumulative 260.3 hours Start 2025.08.26 @ 12:18:05 End 2025.08.26 @ 14:05:53 Sessions 3 Manual Loads 0 Difficulty Rogue Special Mode None Game No. 184 Rogue 184 Adventurer 0 Explorer 0 Win Type - Total 2 Types 2/0/0/0/0/0/0/0/0/0 Lore% 72 Gallery% 71 Achievement% 60 Wizard Run 0 Options --------- Layout 1 ASCII 0 Keyboard 0 Movement Mouse Keybinds 0 Fullscreen 1 Font 32/SmallcapsGlow Map View 50x35 Zoom Use 0% Tactical HUD 1 Map Filters NONE Filters NONE Steam 1 RUN: 5aeb556f-145f-4fd7-ab3e-78f69e1c3328